bitfinex/quotes_SOLUSD_20251006
["timestamp","ask_amount","ask_price","bid_price","bid_amount"]
[1759764807497,0.67,235.81,235.71,30.6]
[1759764807498,0.67,235.8,235.71,30.6]
[1759764807691,0.67,235.79,235.71,30.6]
[1759764808000,0.67,235.82,235.72,0.7]
[1759764809398,14.84245791,235.81,235.72,0.7]
[1759764809711,4.24070226,235.81,235.72,4.94230089]
[1759764809920,14.84245791,235.81,235.73,0.7]
[1759764810501,4.24070226,235.81,235.73,0.7]
[1759764810720,14.84245791,235.81,235.73,0.7]
[1759764811018,15.51245791,235.81,235.73,0.7]
[1759764811323,10.60175565,235.81,235.73,0.7]
[1759764811705,11.27175565,235.81,235.73,0.7]
[1759764812531,4.70656504,235.8,235.68,31.2]
[1759764812715,11.27175565,235.81,235.68,31.2]
[1759764812716,4.70656504,235.78,235.68,31.2]
[1759764812907,0.67,235.77,235.68,31.2]
[1759764813226,4.24160162,235.76,235.68,31.2]
[1759764813424,6.17519201,235.76,235.69,0.7]
[1759764813725,4.24160162,235.76,235.69,0.7]
[1759764813899,1.93359039,235.75,235.68,30.5]
[1759764814725,16.77919608,235.76,235.68,30.5]
[1759764814914,16.77919608,235.76,235.69,0.7]
[1759764815814,14.84560569,235.76,235.69,0.7]
[1759764816129,1.93359039,235.74,235.68,30.5]
[1759764816329,0.71,235.75,235.68,30.5]
[1759764817730,14.84686518,235.74,235.68,30.5]
[1759764818102,14.84686518,235.74,235.66,0.7]
[1759764818297,14.84686518,235.74,235.66,31.2]
[1759764819002,3.02242607,235.73,235.66,31.2]
[1759764819599,14.84686518,235.74,235.67,0.7]
[1759764820210,17.86929125,235.74,235.67,0.7]
[1759764821526,14.84686518,235.74,235.67,0.7]
[1759764822106,4.24196148,235.74,235.67,5.40894361]
[1759764822320,14.84686518,235.74,235.68,0.7]
[1759764823920,10.6049037,235.74,235.68,0.7]
[1759764825707,3.02242607,235.72,235.68,0.7]
[1759764825908,4.24250137,235.71,235.67,4.70894361]
[1759764826110,3.02242607,235.7,235.65,0.7]
[1759764826313,3.02242607,235.68,235.65,30.5]
[1759764826708,15.55875481,235.71,235.65,30.5]
[1759764827031,3.02242607,235.7,235.66,0.7]
[1759764827237,21.51,235.77,235.67,0.7]
[1759764827408,3.02242607,235.73,235.67,0.7]
[1759764827607,3.02242607,235.72,235.67,0.7]
[1759764827811,3.02242607,235.71,235.67,0.7]
[1759764828442,7.26498154,235.71,235.67,0.66]
[1759764828651,3.02242607,235.7,235.67,0.66]
[1759764828939,3.02242607,235.69,235.66,4.70894361]
[1759764829439,3.02242607,235.67,235.65,30.5]
[1759764829841,3.02242607,235.69,235.65,30.5]
[1759764830013,3.02242607,235.68,235.65,30.5]
[1759764830339,3.02242607,235.67,235.65,30.5]
[1759764830639,3.02242607,235.67,235.62,5.78486636]
[1759764830810,3.02242607,235.67,235.62,31.16]
[1759764831315,3.02242607,235.67,235.62,0.66]
[1759764831712,0.69,235.66,235.61,30.5]
[1759764831928,3.02242607,235.67,235.62,0.66]
[1759764832245,0.69,235.7,235.61,30.5]
[1759764832555,4.24196148,235.74,235.66,10.87647521]
[1759764832843,7.26403769,235.76,235.68,10.87647521]
[1759764833041,3.02242607,235.72,235.67,35.86894361]
[1759764833253,3.02242607,235.7,235.67,30.5]
[1759764834141,7.26526244,235.7,235.67,30.5]
[1759764834522,3.02242607,235.68,235.67,30.5]
[1759764834723,3.02242607,235.68,235.63,30.5]
[1759764835037,3.02242607,235.67,235.64,0.66]
[1759764835730,14.8495398,235.7,235.64,0.66]
[1759764835945,3.02242607,235.67,235.64,0.66]
[1759764836448,7.26566776,235.67,235.64,0.66]
[1759764837430,4.24324169,235.67,235.64,0.66]
[1759764837630,3.71242607,235.66,235.63,30.5]
[1759764837833,3.02242607,235.64,235.63,30.5]
[1759764839744,3.02242607,235.65,235.63,30.5]
[1759764840066,7.26566312,235.67,235.64,0.66]
[1759764840239,4.24323705,235.67,235.63,30.5]
[1759764840444,7.26566312,235.67,235.63,30.5]
[1759764840765,3.02242607,235.67,235.63,30.5]
[1759764840963,3.02242607,235.67,235.63,31.16]
[1759764841664,14.8493848,235.7,235.63,31.16]
[1759764841867,3.02242607,235.66,235.63,30.5]
[1759764842069,3.02242607,235.64,235.63,30.5]
[1759764842279,0.69,235.7,235.63,0.66]
[1759764842473,0.69,235.72,235.63,0.66]
[1759764842769,3.02242607,235.69,235.63,0.66]
[1759764842974,3.02242607,235.7,235.64,30.5]
[1759764843141,3.02242607,235.7,235.65,0.66]
[1759764843344,3.02242607,235.7,235.6,31.67647521]
[1759764843345,0.69,235.69,235.61,0.66]
[1759764843575,3.02242607,235.67,235.62,30.5]
[1759764843771,0.69,235.69,235.62,31.16]
[1759764844070,3.02242607,235.67,235.63,0.66]
[1759764844273,7.26567794,235.67,235.62,30.5]
[1759764844445,3.02242607,235.66,235.63,0.66]
[1759764844874,4.24325187,235.67,235.63,0.66]
[1759764845064,7.26567794,235.67,235.62,30.5]
[1759764845268,7.26567794,235.67,235.64,0.66]
[1759764845468,7.26567794,235.67,235.62,31.16]
[1759764845678,7.26567794,235.67,235.63,0.66]
[1759764845967,7.26567794,235.67,235.64,0.66]
[1759764846172,3.02242607,235.66,235.62,31.16]
[1759764846371,0.69,235.71,235.63,0.66]
[1759764846674,3.02242607,235.68,235.63,0.66]
[1759764846850,3.02242607,235.67,235.64,0.66]
[1759764847057,3.02242607,235.66,235.62,30.5]
[1759764847859,10.60580349,235.72,235.63,0.66]
[1759764848050,3.02242607,235.7,235.65,20.8]
[1759764848250,3.02242607,235.7,235.66,31.16]
[1759764848677,4.24214143,235.73,235.66,30.5]
[1759764848976,3.02242607,235.7,235.66,31.16]
[1759764849279,3.02242607,235.7,235.67,0.66]
[1759764849685,10.60329811,235.78,235.68,0.66]
[1759764849858,21.49,235.78,235.68,0.66]
[1759764850059,7.26447568,235.74,235.68,0.66]
[1759764850462,3.02242607,235.74,235.68,4.90299064]
[1759764850689,21.49,235.78,235.68,4.90299064]
[1759764850866,14.84497603,235.77,235.68,4.24299064]
[1759764851190,3.02242607,235.75,235.69,0.66]
[1759764851497,3.02242607,235.74,235.7,30.5]
[1759764852193,3.02242607,235.75,235.7,30.5]
[1759764852367,11.2911563,235.83,235.71,0.66]
[1759764852569,3.02242607,235.79,235.71,0.66]
[1759764853276,11.2911563,235.83,235.71,0.66]
[1759764853460,3.02242607,235.8,235.71,0.66]
[1759764854268,4.24070178,235.82,235.72,4.24232139]
[1759764854471,3.02242607,235.81,235.73,0.66]
[1759764854690,3.02242607,235.81,235.74,30.5]
[1759764854863,3.02242607,235.78,235.74,30.5]
[1759764855060,3.02242607,235.77,235.74,30.5]
[1759764855263,3.02242607,235.78,235.74,30.5]
[1759764856181,7.26375213,235.78,235.74,30.5]
[1759764856677,3.02242607,235.78,235.74,30.5]
[1759764856863,7.2637287,235.78,235.74,30.5]
[1759764857072,7.2637287,235.78,235.74,31.16]
[1759764857465,3.02242607,235.79,235.74,31.16]
[1759764857689,3.02242607,235.78,235.74,30.5]
[1759764857887,0.69,235.81,235.74,30.5]
[1759764858196,3.02242607,235.8,235.75,0.71]
[1759764858758,7.26348803,235.79,235.75,0.71]
[1759764858990,3.02242607,235.79,235.75,0.71]
[1759764859363,4.24104791,235.8,235.74,30.5]
[1759764859364,3.02242607,235.78,235.74,30.5]
[1759764859562,3.02242607,235.78,235.74,31.21]
[1759764859861,4.24104791,235.8,235.74,31.21]
[1759764859862,3.02242607,235.77,235.74,31.21]
[1759764860266,7.26386293,235.77,235.74,31.21]
[1759764860965,3.02242607,235.77,235.74,31.21]
[1759764861285,4.23980327,235.86,235.77,20.8]
[1759764861477,4.23980327,235.86,235.78,47.19134157]
[1759764861682,4.23980327,235.86,235.79,0.71]
[1759764861888,4.23980327,235.86,235.8,4.70894361]
[1759764862086,14.83692057,235.9,235.81,0.71]
[1759764862282,14.83692057,235.9,235.82,30.48]
[1759764862487,14.83692057,235.9,235.83,0.71]
[1759764863473,10.59783622,235.9,235.83,0.71]
[1759764864689,4.23908435,235.9,235.83,0.71]
[1759764864893,4.23908435,235.9,235.83,4.95028446]
[1759764865076,4.23908435,235.9,235.84,0.71]
[1759764867492,7.26151042,235.9,235.84,0.71]
[1759764867998,14.83679524,235.9,235.82,31.19]
[1759764868292,17.85922131,235.9,235.83,11.58647521]
[1759764868876,7.26151042,235.9,235.84,0.71]
[1759764869087,7.36129782,235.92,235.84,4.95008745]
[1759764869290,7.36129782,235.92,235.85,0.71]
[1759764869500,7.36129782,235.92,235.86,30.48]
[1759764869705,7.36129782,235.92,235.86,31.19]
[1759764870690,17.95811029,235.92,235.86,31.19]
[1759764871098,3.02242607,235.88,235.75,23.10406064]
[1759764871402,3.02242607,235.84,235.81,30.46]
[1759764871600,20.8,235.89,235.74,0.71]
[1759764871601,3.02242607,235.82,235.74,0.71]
[1759764871805,3.02242607,235.79,235.75,30.46]
[1759764872105,3.02242607,235.79,235.76,0.71]
[1759764872306,3.02242607,235.81,235.75,30.46]
[1759764872607,3.02242607,235.81,235.77,0.71]
[1759764872803,7.26327647,235.81,235.77,0.71]
[1759764873005,3.02242607,235.79,235.75,30.46]
[1759764873389,3.02242607,235.79,235.76,0.71]
[1759764873591,7.26327647,235.81,235.77,0.71]
[1759764873795,7.26327647,235.81,235.75,31.17]
[1759764875111,7.26327647,235.81,235.76,0.71]
[1759764875292,3.02242607,235.79,235.75,30.46]
[1759764875686,3.02242607,235.79,235.76,0.67]
[1759764875908,3.02242607,235.8,235.75,30.46]
[1759764876205,3.02242607,235.82,235.76,0.67]
[1759764876508,4.2401733,235.84,235.77,10.87647521]
[1759764876704,4.2401733,235.84,235.78,0.67]
[1759764876893,4.23998304,235.85,235.79,30.46]
[1759764877095,4.23998304,235.85,235.8,0.67]
[1759764877310,7.26240911,235.85,235.8,0.67]
[1759764878114,3.02242607,235.82,235.79,30.46]
[1759764878411,3.02242607,235.82,235.78,30.46]
[1759764878710,7.26240911,235.85,235.79,0.67]
[1759764879913,3.02242607,235.84,235.78,30.46]
[1759764880113,4.23998304,235.85,235.78,35.37121952]
[1759764880296,3.02242607,235.84,235.79,0.67]
[1759764881013,3.02242607,235.84,235.8,0.67]
[1759764881315,4.24034261,235.83,235.78,31.13]
[1759764881700,1.93240311,235.82,235.78,30.46]
[1759764882223,1.93240311,235.82,235.78,31.13]
[1759764883204,16.77360226,235.83,235.78,31.13]
[1759764883520,16.77360226,235.83,235.79,30.46]
[1759764883695,4.24034261,235.83,235.79,30.46]
[1759764883894,4.24034261,235.83,235.79,31.13]
[1759764884219,4.24034261,235.83,235.79,30.46]
[1759764884417,1.93240311,235.84,235.8,0.67]
[1759764884613,4.23998304,235.85,235.81,0.67]
[1759764884990,4.23998304,235.85,235.79,34.7010343]
[1759764885295,4.23998304,235.85,235.79,35.3710343]
[1759764886194,4.23981886,235.86,235.8,0.67]
[1759764886400,4.23890466,235.91,235.8,0.67]
[1759764886703,1.93240311,235.9,235.8,0.67]
[1759764887107,1.93240311,235.88,235.8,0.67]
[1759764887414,1.93240311,235.88,235.79,34.70105472]
[1759764887415,1.93240311,235.86,235.79,30.46]
[1759764887719,1.93240311,235.83,235.79,30.44]
[1759764888214,6.17237369,235.86,235.8,0.67]
[1759764888418,16.77188187,235.86,235.8,0.67]
[1759764888719,1.93240311,235.84,235.79,30.44]
[1759764889095,2.59240311,235.84,235.79,30.44]
[1759764889628,6.17274572,235.83,235.79,30.44]
[1759764890214,4.24034261,235.83,235.8,0.67]
[1759764891125,4.24034261,235.83,235.79,30.44]
[1759764891291,6.17274572,235.83,235.79,30.44]
[1759764891697,6.17274572,235.83,235.79,31.11]
[1759764891996,6.17274572,235.83,235.79,30.44]
[1759764892325,20.8,235.8,235.66,4.63111452]
[1759764892626,1.93240311,235.7,235.66,24.75]
[1759764892801,1.93240311,235.71,235.67,0.67]
[1759764893121,20.8,235.79,235.63,0.67]
[1759764893122,1.93240311,235.7,235.63,0.67]
[1759764893321,1.93240311,235.7,235.64,30.44]
[1759764893537,0.66,235.74,235.65,0.67]
[1759764893701,11.26501478,235.74,235.65,0.67]
[1759764893900,1.93240311,235.71,235.65,0.67]
[1759764894095,4.24214143,235.73,235.65,0.67]
[1759764894096,1.93240311,235.72,235.65,4.91350132]
[1759764894425,1.93240311,235.72,235.66,0.67]
[1759764894620,4.24214143,235.73,235.66,0.67]
[1759764894835,1.93240311,235.72,235.66,0.67]
[1759764895223,1.93240311,235.73,235.66,0.67]
[1759764895404,1.93240311,235.75,235.66,0.67]
[1759764895917,6.1743023,235.75,235.67,4.24322145]
[1759764896124,4.24189919,235.75,235.68,0.67]
[1759764896426,4.24189919,235.75,235.68,31.11]
[1759764896800,1.93240311,235.74,235.68,30.44]
[1759764897001,1.93240311,235.73,235.68,30.44]
[1759764897223,1.93240311,235.73,235.68,31.11]
[1759764897404,4.24189919,235.75,235.68,30.44]
[1759764897605,4.24189919,235.75,235.69,0.67]
[1759764898006,1.93240311,235.74,235.68,30.44]
[1759764898218,1.93240311,235.73,235.68,30.44]
[1759764898623,1.93240311,235.73,235.68,31.11]
[1759764899004,1.93240311,235.74,235.68,30.44]
[1759764899222,1.93240311,235.74,235.69,0.67]
[1759764900219,4.24214143,235.73,235.68,30.44]
[1759764900425,4.24214143,235.73,235.64,20.8]
[1759764900426,1.93240311,235.7,235.64,0.67]
[1759764901709,1.93240311,235.71,235.64,0.67]
[1759764902715,6.17495918,235.71,235.64,4.91376075]
[1759764902916,1.93240311,235.71,235.64,4.91376075]
[1759764903138,1.93240311,235.71,235.65,0.67]
[1759764903318,6.17490808,235.71,235.65,0.67]
[1759764903518,1.93240311,235.74,235.65,0.67]
[1759764903828,4.24195124,235.75,235.65,0.67]
[1759764904045,0.66,235.73,235.62,0.67]
[1759764904208,1.93240311,235.67,235.62,0.67]
[1759764904534,1.93240311,235.67,235.63,0.67]
[1759764904749,1.93240311,235.68,235.64,0.67]
[1759764905047,0.66,235.73,235.65,0.67]
[1759764905205,6.1747245,235.72,235.65,0.67]
[1759764905527,1.93240311,235.71,235.65,0.67]
[1759764905702,6.1747245,235.72,235.65,0.67]
[1759764906332,1.93240311,235.7,235.65,0.67]
[1759764906524,4.90286138,235.69,235.61,20.8]
[1759764906830,1.93240311,235.64,235.59,0.67]
[1759764907033,1.93240311,235.67,235.59,4.91464648]
[1759764907236,1.93240311,235.65,235.59,0.67]
[1759764907420,1.93240311,235.65,235.58,51.24]
[1759764907620,1.93240311,235.65,235.44,10.8183541]
[1759764907621,0.66,235.64,235.53,0.67]
[1759764907820,0.66,235.64,235.53,30.44]
[1759764907821,1.93240311,235.58,235.53,30.44]
[1759764908031,20.8,235.65,235.53,30.44]
[1759764908032,1.93240311,235.59,235.53,30.44]
[1759764908229,1.93240311,235.58,235.53,31.11]
[1759764908611,6.1772864,235.58,235.53,31.11]
[1759764909028,4.24488329,235.58,235.53,31.11]
[1759764909242,1.93240311,235.59,235.54,0.67]
[1759764909441,1.93240311,235.58,235.54,0.67]
[1759764909816,1.93240311,235.57,235.53,30.44]
[1759764910213,4.24467612,235.59,235.53,31.11]
[1759764910436,1.93240311,235.58,235.53,31.11]
[1759764910655,1.93240311,235.58,235.54,0.67]
[1759764910950,1.93240311,235.61,235.55,0.67]
[1759764911447,1.93240311,235.62,235.55,0.67]
[1759764911623,1.93240311,235.61,235.55,0.67]
[1759764912242,4.24394873,235.63,235.56,4.24520292]
[1759764912419,1.93240311,235.61,235.56,4.24520292]
[1759764913042,1.93240311,235.61,235.55,4.24531013]
[1759764913341,1.93240311,235.61,235.55,4.91531013]
[1759764913733,0.66,235.62,235.53,0.67]
[1759764914038,1.93240311,235.58,235.53,0.67]
[1759764914919,1.93240311,235.58,235.52,52.98590715]
[1759764914920,6.1773454,235.58,235.54,0.67]
[1759764915122,0.66,235.64,235.55,0.67]
[1759764915420,1.93240311,235.62,235.55,0.67]
[1759764915756,4.90357896,235.66,235.55,0.67]
[1759764915920,1.93240311,235.65,235.55,0.67]
[1759764916522,4.24376167,235.64,235.56,4.24520292]
[1759764916829,4.24376167,235.64,235.57,0.67]
[1759764917031,1.93240311,235.65,235.58,30.44]
[1759764917359,1.93240311,235.63,235.58,31.11]
[1759764917648,4.24359937,235.65,235.58,30.44]
[1759764917846,6.17600248,235.65,235.58,30.44]
[1759764918169,1.93240311,235.62,235.57,30.44]
[1759764918317,0.67,235.64,235.57,30.44]
[1759764918524,1.93240311,235.63,235.57,31.15]
[1759764918725,6.17648103,235.63,235.57,31.15]
[1759764918943,1.93240311,235.65,235.58,0.71]
[1759764919217,1.93240311,235.63,235.53,20.8]
[1759764919417,1.93240311,235.61,235.54,31.15]
[1759764919622,1.93240311,235.61,235.54,30.44]
[1759764919937,1.93240311,235.64,235.55,0.71]
[1759764920322,15.52127508,235.67,235.55,0.71]
[1759764920524,1.93240311,235.66,235.57,20.8]
[1759764920747,4.24358158,235.65,235.58,4.95478968]
[1759764921136,4.24358158,235.65,235.59,0.71]
[1759764921349,4.24358158,235.65,235.59,31.15]
[1759764921735,1.93240311,235.66,235.59,35.3945973]
[1759764921941,1.93240311,235.68,235.6,0.71]
[1759764922343,6.17526449,235.69,235.6,0.71]
[1759764922546,4.24286138,235.69,235.6,0.71]
[1759764922743,6.17526449,235.69,235.6,0.71]
[1759764923056,6.17526449,235.69,235.61,4.24430202]
[1759764923260,6.17526449,235.69,235.61,4.95430202]
[1759764923447,4.24286138,235.69,235.62,0.71]
[1759764923646,6.17526449,235.69,235.62,0.71]
[1759764923844,4.24286138,235.69,235.62,0.71]
[1759764924049,6.17526449,235.69,235.62,0.71]
[1759764924364,1.93240311,235.7,235.62,0.71]
[1759764924768,1.93240311,235.69,235.62,0.71]
[1759764924970,4.24304141,235.68,235.62,0.71]
[1759764925461,1.93240311,235.66,235.59,31.15]
[1759764925763,0.67,235.67,235.59,0.71]
[1759764925962,1.93240311,235.66,235.59,35.39465168]
[1759764926663,1.93240311,235.66,235.59,31.15]
[1759764926962,6.17591412,235.66,235.59,35.39462782]
[1759764927462,4.24319079,235.68,235.6,0.71]
[1759764927657,1.93240311,235.67,235.6,0.71]
[1759764927859,0.67,235.69,235.6,0.71]
[1759764927860,1.93240311,235.68,235.6,0.71]
[1759764928063,1.93240311,235.69,235.6,0.71]
[1759764928250,4.24305089,235.68,235.6,0.71]
[1759764928660,1.93240311,235.69,235.6,0.71]
[1759764928967,4.24288117,235.69,235.6,0.71]
[1759764929146,1.93240311,235.69,235.61,4.24430202]
[1759764929346,1.93240311,235.7,235.62,0.71]
[1759764929548,6.1752067,235.7,235.62,0.71]
[1759764930057,4.24280359,235.7,235.62,0.71]
[1759764930253,6.1752067,235.7,235.62,0.71]
[1759764930654,6.1752067,235.7,235.62,4.95401195]
[1759764931057,1.93240311,235.68,235.62,0.71]
[1759764931257,1.93240311,235.66,235.59,31.15]
[1759764931762,1.93240311,235.65,235.59,31.15]
[1759764932470,1.93240311,235.65,235.59,0.71]
[1759764932673,1.93240311,235.63,235.59,30.44]
[1759764933266,16.78556895,235.64,235.59,31.15]
[1759764934456,1.93240311,235.63,235.59,31.15]
[1759764934760,4.24412189,235.62,235.59,30.44]
[1759764935753,4.24392858,235.64,235.6,0.68]
[1759764935952,14.84766143,235.73,235.61,0.68]
[1759764936151,16.78006454,235.73,235.62,20.8]
[1759764936354,16.78006454,235.73,235.63,0.68]
[1759764936680,4.24214143,235.73,235.64,34.68364823]
[1759764936982,4.24124183,235.78,235.67,20.8]
[1759764937168,4.24124183,235.78,235.68,0.68]
[1759764937474,1.93240311,235.74,235.68,31.12]
[1759764937844,1.93240311,235.75,235.68,31.12]
[1759764938048,1.93240311,235.75,235.69,2.80134602]
[1759764938260,1.93240311,235.75,235.7,2.80134602]
[1759764938550,1.93240311,235.76,235.71,3.48134602]
[1759764938756,4.24178154,235.75,235.71,0.68]
[1759764939157,4.24178154,235.75,235.69,0.68]
[1759764939357,4.24178154,235.75,235.7,2.80059391]
[1759764939559,20.8,235.78,235.71,3.48059391]
[1759764939865,1.93240311,235.78,235.72,2.80059391]
[1759764940066,25.0408821,235.8,235.71,0.68]
[1759764940265,1.93240311,235.78,235.72,2.80007652]
[1759764940451,1.93240311,235.78,235.71,0.68]
[1759764940648,4.24142172,235.77,235.72,2.79936516]
[1759764940851,4.24142172,235.77,235.73,2.79936516]
[1759764941075,4.24142172,235.77,235.72,0.68]
[1759764941284,4.24142172,235.77,235.73,2.79968389]
[1759764941484,4.24142172,235.77,235.74,0.68]
[1759764941690,12.72885419,235.83,235.69,34.68284349]
[1759764941691,23.3298582,235.83,235.75,0.68]
[1759764941989,4.2403996,235.83,235.76,2.79853111]
[1759764942279,1.93240311,235.81,235.75,30.42]
[1759764942456,1.93240311,235.8,235.76,2.79786853]
[1759764942777,6.86346507,235.79,235.72,30.42]
[1759764942992,6.86346507,235.79,235.73,2.79867089]
[1759764943155,7.95195306,235.79,235.74,2.79867089]
[1759764943481,17.86460796,235.79,235.74,0.68]
[1759764943666,17.86460796,235.79,235.7,0.68]
[1759764943667,3.7108911,235.78,235.7,0.68]
[1759764943855,3.0208911,235.77,235.71,33.21794139]
[1759764944176,17.86460796,235.79,235.72,3.47794139]
[1759764944382,17.86460796,235.79,235.73,2.79794139]
[1759764944566,17.86460796,235.79,235.72,0.68]
[1759764944767,17.86460796,235.79,235.73,2.79758831]
[1759764944966,17.86460796,235.79,235.72,0.68]
[1759764945157,17.86460796,235.79,235.73,2.79798543]
[1759764945354,17.86460796,235.79,235.72,0.68]
[1759764945578,17.86460796,235.79,235.73,2.79758296]
[1759764945777,17.86460796,235.79,235.72,0.68]
[1759764945971,14.84371686,235.79,235.73,2.7975823]
[1759764946177,14.84371686,235.79,235.72,0.68]
[1759764946373,14.84371686,235.79,235.73,2.79715763]
[1759764946581,14.84371686,235.79,235.74,2.79715763]
[1759764946887,14.84371686,235.79,235.72,0.68]
[1759764946888,15.53371686,235.79,235.72,0.68]
[1759764947084,15.53371686,235.79,235.73,2.79701728]
[1759764947398,3.0208911,235.78,235.74,2.79701728]
[1759764947593,3.0208911,235.78,235.71,30.42]
[1759764947594,3.7108911,235.78,235.71,30.42]
[1759764947774,3.7108911,235.78,235.72,2.79583287]
[1759764947972,3.7108911,235.78,235.73,2.79583287]
[1759764948189,0.68,235.77,235.71,30.42]
[1759764948485,3.7008911,235.77,235.72,2.79615363]
[1759764948657,3.0208911,235.75,235.68,0.72]
[1759764948863,4.24196148,235.74,235.69,33.21631186]
[1759764949062,4.24196148,235.74,235.7,3.51631186]
[1759764949273,4.24196148,235.74,235.71,2.79631186]
[1759764949485,4.24196148,235.74,235.72,2.79631186]
[1759764949684,4.24196148,235.74,235.7,0.72]
[1759764949992,4.24196148,235.74,235.71,2.79657238]
[1759764950190,4.24196148,235.74,235.7,0.72]
[1759764950376,4.24196148,235.74,235.71,2.79717579]
[1759764950577,4.24196148,235.74,235.71,0.72]
[1759764951290,4.24178154,235.75,235.72,0.72]
[1759764952491,14.84562542,235.76,235.72,0.72]
[1759764952970,17.86651652,235.76,235.7,0.72]
[1759764953177,17.86651652,235.76,235.71,2.79658843]
[1759764953488,17.86651652,235.76,235.71,0.72]
[1759764953990,3.0208911,235.75,235.71,0.72]
[1759764954169,17.86651652,235.76,235.71,0.72]
[1759764954368,18.54651652,235.76,235.71,0.72]
[1759764954587,18.54651652,235.76,235.72,2.79721279]
[1759764954886,0.68,235.75,235.69,30.42]
[1759764955090,0.68,235.75,235.7,2.79743208]
[1759764955288,17.86651652,235.76,235.71,33.21743208]
[1759764955481,17.86651652,235.76,235.72,2.79743208]
[1759764955697,17.86651652,235.76,235.72,0.72]
[1759764955885,17.86651652,235.76,235.71,30.42]
[1759764956085,17.86651652,235.76,235.72,2.79764732]
[1759764956287,17.86651652,235.76,235.71,31.14]
[1759764956478,17.86651652,235.76,235.72,2.79856212]
[1759764956677,17.86651652,235.76,235.71,31.14]
[1759764956885,17.86651652,235.76,235.72,2.79849521]
[1759764957199,17.86651652,235.76,235.73,2.79828539]
[1759764957200,4.24160162,235.76,235.73,2.79828539]
[1759764957378,4.24160162,235.76,235.71,31.14]
[1759764957689,4.24160162,235.76,235.72,3.51904404]
[1759764957993,4.24140222,235.78,235.73,3.51904404]
[1759764958194,4.24140222,235.78,235.74,2.79904404]
[1759764958384,4.24140222,235.78,235.73,0.72]
[1759764958578,7.26229332,235.78,235.74,2.79954279]
[1759764958775,7.26229332,235.78,235.73,0.72]
[1759764959083,7.26229332,235.78,235.74,2.79954654]
[1759764959288,7.26229332,235.78,235.73,0.72]
[1759764959594,7.26229332,235.78,235.74,2.79929275]
[1759764959786,7.26229332,235.78,235.73,0.72]
[1759764959997,7.26229332,235.78,235.74,3.51942903]
[1759764960182,20.8,235.79,235.74,0.72]
[1759764960377,23.8208911,235.79,235.74,0.72]
[1759764960589,0.68,235.83,235.75,3.51856011]
[1759764960772,3.0208911,235.86,235.76,33.91856011]
[1759764960972,4.23962352,235.87,235.77,3.51856011]
[1759764961177,4.23962352,235.87,235.78,3.51856011]
[1759764961374,17.85957342,235.87,235.79,3.51856011]
[1759764961580,4.91890466,235.91,235.8,3.51856011]
[1759764961773,7.93979576,235.91,235.81,3.51856011]
[1759764962090,3.0208911,235.9,235.82,33.91856011]
[1759764962267,3.0208911,235.9,235.83,33.19856011]
[1759764962466,15.51616632,235.91,235.84,2.79856011]
[1759764962700,3.0208911,235.9,235.83,30.4]
[1759764962876,3.0208911,235.9,235.84,2.79111749]
[1759764963073,3.0208911,235.9,235.83,30.4]
[1759764963074,7.25979576,235.91,235.83,30.4]
[1759764963293,4.23890466,235.91,235.85,0.72]
[1759764963503,7.25979576,235.91,235.85,0.72]
[1759764963701,3.0208911,235.9,235.85,0.72]
[1759764964071,4.23926406,235.89,235.85,0.72]
[1759764965374,4.23926406,235.89,235.83,30.4]
[1759764965708,4.23926406,235.89,235.84,0.72]
[1759764965888,4.23926406,235.89,235.85,0.72]
[1759764966704,4.23908435,235.9,235.85,0.72]
[1759764967010,17.85768634,235.9,235.85,0.72]
[1759764967321,0.1,235.92,235.83,30.4]
[1759764967507,0.1,235.92,235.87,20.8]